[Event "Live Chess"]
[Site "Chess.com"]
[Date "2023.05.21"]
[Round "-"]
[White "Alfiedog12"]
[Black "Long1968"]
[Result "1-0"]
[WhiteElo "948"]
[BlackElo "958"]
[TimeControl "300"]
[EndTime "5:52:35 PDT"]
[Termination "Alfiedog12 won on time"]

1. d4 {[%clk 0:04:59.3]} 1... e6 {[%clk 0:04:57.4]} 2. Bf4 {[%clk 0:04:58.9]}
2... c5 {[%clk 0:04:54.5]} 3. dxc5 {[%clk 0:04:52.8]} 3... Bxc5 {[%clk
0:04:50.7]} 4. Nf3 {[%clk 0:04:52.2]} 4... Nc6 {[%clk 0:04:47]} 5. e3 {[%clk
0:04:44.5]} 5... Nf6 {[%clk 0:04:41.8]} 6. Nbd2 {[%clk 0:04:42.8]} 6... O-O
{[%clk 0:04:37.4]} 7. c3 {[%clk 0:04:41.9]} 7... Re8 {[%clk 0:04:31.9]} 8. Be2
{[%clk 0:04:39.9]} 8... e5 {[%clk 0:04:21]} 9. Bg3 {[%clk 0:04:37.7]} 9... e4
{[%clk 0:04:04.5]} 10. Ng5 {[%clk 0:04:13.2]} 10... d5 {[%clk 0:03:58.3]} 11.
Bh5 {[%clk 0:04:03.6]} 11... g6 {[%clk 0:03:51.2]} 12. Be2 {[%clk 0:03:54.1]}
12... h6 {[%clk 0:03:41.3]} 13. Nh3 {[%clk 0:03:42.6]} 13... Bxh3 {[%clk
0:03:22.5]} 14. gxh3 {[%clk 0:03:39]} 14... Qd7 {[%clk 0:03:19.4]} 15. h4 {[%clk
0:03:38.3]} 15... h5 {[%clk 0:03:02.9]} 16. f3 {[%clk 0:03:18.4]} 16... Qh3
{[%clk 0:02:35.3]} 17. fxe4 {[%clk 0:02:49.6]} 17... dxe4 {[%clk 0:02:09.8]} 18.
Qc2 {[%clk 0:02:28.3]} 18... Nd5 {[%clk 0:01:18.9]} 19. O-O-O {[%clk 0:02:01.5]}
19... Nxe3 {[%clk 0:01:05.9]} 20. Qb3 {[%clk 0:01:55.7]} 20... Nxd1 {[%clk
0:00:54.9]} 21. Qxd1 {[%clk 0:01:53.5]} 21... Be3 {[%clk 0:00:37.9]} 22. Bxh5
{[%clk 0:01:42.3]} 22... Red8 {[%clk 0:00:17.5]} 23. Be1 {[%clk 0:01:23.2]}
23... gxh5 {[%clk 0:00:08.7]} 24. Qxh5 {[%clk 0:01:18.9]} 1-0

[Event "Live Chess"]
[Site "Chess.com"]
[Date "2023.05.21"]
[Round "-"]
[White "raminguy"]
[Black "KeithArkell"]
[Result "0-1"]
[WhiteElo "1954"]
[BlackElo "2475"]
[TimeControl "300"]
[EndTime "5:52:43 PDT"]
[Termination "KeithArkell won by checkmate"]

1. d4 {[%clk 0:04:58.8]} 1... e6 {[%clk 0:04:59]} 2. Nc3 {[%clk 0:04:58.2]} 2...
d5 {[%clk 0:04:57.7]} 3. Bf4 {[%clk 0:04:57.4]} 3... Bd6 {[%clk 0:04:56.3]} 4.
e3 {[%clk 0:04:56.3]} 4... Bxf4 {[%clk 0:04:53.9]} 5. exf4 {[%clk 0:04:56.2]}
5... c5 {[%clk 0:04:53]} 6. Nf3 {[%clk 0:04:53.9]} 6... cxd4 {[%clk 0:04:51.7]}
7. Qxd4 {[%clk 0:04:51.8]} 7... Nf6 {[%clk 0:04:50]} 8. O-O-O {[%clk 0:04:50.5]}
8... Nc6 {[%clk 0:04:49.2]} 9. Bb5 {[%clk 0:04:48.2]} 9... Bd7 {[%clk
0:04:48.5]} 10. Bxc6 {[%clk 0:04:47]} 10... bxc6 {[%clk 0:04:47.8]} 11. Rhe1
{[%clk 0:04:46.2]} 11... Qb6 {[%clk 0:04:46.5]} 12. f5 {[%clk 0:04:42]} 12...
O-O {[%clk 0:04:40.1]} 13. fxe6 {[%clk 0:04:40.8]} 13... fxe6 {[%clk 0:04:36.9]}
14. Qxb6 {[%clk 0:04:37]} 14... axb6 {[%clk 0:04:36.1]} 15. Nd4 {[%clk
0:04:35.9]} 15... Rfe8 {[%clk 0:04:33.5]} 16. f3 {[%clk 0:04:31.4]} 16... Kf7
{[%clk 0:04:32.5]} 17. a3 {[%clk 0:04:25.9]} 17... c5 {[%clk 0:04:31.7]} 18.
Ndb5 {[%clk 0:04:12.1]} 18... Bxb5 {[%clk 0:04:15.3]} 19. Nxb5 {[%clk
0:04:10.2]} 19... Rad8 {[%clk 0:04:11]} 20. Rd2 {[%clk 0:03:59.7]} 20... Re7
{[%clk 0:04:05.3]} 21. Rde2 {[%clk 0:03:57.7]} 21... e5 {[%clk 0:04:03.1]} 22.
Rxe5 {[%clk 0:03:54.9]} 22... Rxe5 {[%clk 0:03:54.2]} 23. Rxe5 {[%clk
0:03:54.8]} 23... d4 {[%clk 0:03:49.1]} 24. Kd2 {[%clk 0:03:36.3]} 24... Nd5
{[%clk 0:03:46.4]} 25. Na7 {[%clk 0:03:15]} 25... Kf6 {[%clk 0:03:38]} 26. Re4
{[%clk 0:03:07.3]} 26... g5 {[%clk 0:03:35.3]} 27. g3 {[%clk 0:02:58]} 27... Rd7
{[%clk 0:03:27.2]} 28. Nb5 {[%clk 0:02:48.2]} 28... h5 {[%clk 0:03:25.6]} 29.
Ke2 {[%clk 0:02:38.2]} 29... Kf5 {[%clk 0:03:01.7]} 30. h3 {[%clk 0:02:34.6]}
30... h4 {[%clk 0:02:59.1]} 31. g4+ {[%clk 0:02:29]} 31... Kf6 {[%clk
0:02:57.2]} 32. Kf2 {[%clk 0:02:20.6]} 32... Nf4 {[%clk 0:02:55.8]} 33. Re8
{[%clk 0:02:00.2]} 33... Nxh3+ {[%clk 0:02:48.6]} 34. Kf1 {[%clk 0:01:58.7]}
34... d3 {[%clk 0:02:46.1]} 35. cxd3 {[%clk 0:01:56.9]} 35... Rxd3 {[%clk
0:02:45.1]} 36. Ke2 {[%clk 0:01:40.7]} 36... Rb3 {[%clk 0:02:42.5]} 37. Nc3
{[%clk 0:01:30.4]} 37... Rxb2+ {[%clk 0:02:36.7]} 38. Kd3 {[%clk 0:01:29.3]}
38... Rb3 {[%clk 0:02:35.2]} 39. Kc4 {[%clk 0:01:27.3]} 39... Rxa3 {[%clk
0:02:34.2]} 40. Nd5+ {[%clk 0:01:26.7]} 40... Kf7 {[%clk 0:02:33.1]} 41. Nxb6
{[%clk 0:01:26.4]} 41... Kxe8 {[%clk 0:02:31.1]} 42. Kxc5 {[%clk 0:01:26.1]}
42... Rxf3 {[%clk 0:02:29.4]} 43. Nd5 {[%clk 0:01:25.3]} 43... Nf4 {[%clk
0:02:27.1]} 44. Nf6+ {[%clk 0:01:24.1]} 44... Kd8 {[%clk 0:02:23.5]} 45. Ne4
{[%clk 0:01:24]} 45... h3 {[%clk 0:02:17.6]} 46. Nxg5 {[%clk 0:01:22.6]} 46...
h2 {[%clk 0:02:16.9]} 47. Nxf3 {[%clk 0:01:21.2]} 47... h1=Q {[%clk 0:02:16.5]}
48. g5 {[%clk 0:01:20.8]} 48... Qxf3 {[%clk 0:02:15.4]} 49. g6 {[%clk 0:01:20]}
49... Nxg6 {[%clk 0:02:14]} 50. Kd6 {[%clk 0:01:18.9]} 50... Qf6+ {[%clk
0:02:12.4]} 51. Kc5 {[%clk 0:01:18.2]} 51... Ne7 {[%clk 0:02:10.8]} 52. Kb4
{[%clk 0:01:18.1]} 52... Qd4+ {[%clk 0:02:09.7]} 53. Ka3 {[%clk 0:01:17.3]}
53... Nd5 {[%clk 0:02:08.2]} 54. Ka2 {[%clk 0:01:17.2]} 54... Qc3 {[%clk
0:02:04.9]} 55. Kb1 {[%clk 0:01:15.9]} 55... Kc7 {[%clk 0:02:03.6]} 56. Ka2
{[%clk 0:01:14.9]} 56... Nb4+ {[%clk 0:02:02.8]} 57. Kb1 {[%clk 0:01:14.8]}
57... Qc2+ {[%clk 0:02:02.2]} 58. Ka1 {[%clk 0:01:13.6]} 58... Qc1# {[%clk
0:02:01.8]} 0-1

[Event "Live Chess"]
[Site "Chess.com"]
[Date "2023.05.21"]
[Round "-"]
[White "Ferrarifan27"]
[Black "Hacker_2009"]
[Result "1-0"]
[WhiteElo "2071"]
[BlackElo "1938"]
[TimeControl "300"]
[EndTime "5:52:44 PDT"]
[Termination "Ferrarifan27 won by resignation"]

1. e4 {[%clk 0:04:57.8]} 1... c5 {[%clk 0:04:54.9]} 2. Nf3 {[%clk 0:04:55.6]}
2... d6 {[%clk 0:04:54.1]} 3. d4 {[%clk 0:04:51.9]} 3... cxd4 {[%clk 0:04:54]}
4. Nxd4 {[%clk 0:04:49.9]} 4... Nf6 {[%clk 0:04:53.3]} 5. Nc3 {[%clk 0:04:47.1]}
5... a6 {[%clk 0:04:52]} 6. Bg5 {[%clk 0:04:41.8]} 6... e6 {[%clk 0:04:50.5]} 7.
f4 {[%clk 0:04:39.6]} 7... Be7 {[%clk 0:04:38.9]} 8. Qf3 {[%clk 0:04:36.8]} 8...
O-O {[%clk 0:04:37.2]} 9. O-O-O {[%clk 0:04:29.5]} 9... Nc6 {[%clk 0:04:33.6]}
10. g4 {[%clk 0:04:26]} 10... d5 {[%clk 0:04:30.2]} 11. e5 {[%clk 0:04:23.8]}
11... Nd7 {[%clk 0:04:28.3]} 12. h4 {[%clk 0:04:20.6]} 12... Nxd4 {[%clk
0:04:26.5]} 13. Rxd4 {[%clk 0:04:17.1]} 13... Bxg5 {[%clk 0:04:25.3]} 14. hxg5
{[%clk 0:04:15.1]} 14... b5 {[%clk 0:04:22.6]} 15. Qh3 {[%clk 0:04:13.8]} 15...
Re8 {[%clk 0:04:18.7]} 16. Qxh7+ {[%clk 0:04:11.2]} 16... Kf8 {[%clk 0:04:18.3]}
17. Qh8+ {[%clk 0:04:08.5]} 17... Ke7 {[%clk 0:04:17.2]} 18. Qxg7 {[%clk
0:04:07.7]} 18... Bb7 {[%clk 0:04:16.2]} 19. Rh7 {[%clk 0:04:00.8]} 19... Rf8
{[%clk 0:04:13.7]} 20. g6 {[%clk 0:03:52]} 20... Qe8 {[%clk 0:04:11.2]} 21. gxf7
{[%clk 0:03:48.4]} 21... Rxf7 {[%clk 0:04:07.5]} 22. Qg5+ {[%clk 0:03:47.4]} 1-0

[Event "Live Chess"]
[Site "Chess.com"]
[Date "2023.05.21"]
[Round "-"]
[White "CheckThis4"]
[Black "Ian-Morley"]
[Result "1-0"]
[WhiteElo "2515"]
[BlackElo "1050"]
[TimeControl "300"]
[EndTime "5:52:48 PDT"]
[Termination "CheckThis4 won by resignation"]

1. d4 {[%clk 0:04:57.5]} 1... d5 {[%clk 0:04:57.1]} 2. Nc3 {[%clk 0:04:57.1]}
2... Nc6 {[%clk 0:04:56.6]} 3. e4 {[%clk 0:04:55.9]} 3... dxe4 {[%clk
0:04:37.8]} 4. d5 {[%clk 0:04:54.2]} 4... Nb8 {[%clk 0:04:33.2]} 5. Nxe4 {[%clk
0:04:49.5]} 5... Nf6 {[%clk 0:04:28.9]} 6. Nxf6+ {[%clk 0:04:44.6]} 6... gxf6
{[%clk 0:04:27.9]} 7. Bc4 {[%clk 0:04:41]} 7... e6 {[%clk 0:04:17.7]} 8. Be3
{[%clk 0:04:34.5]} 8... Bb4+ {[%clk 0:04:13.5]} 9. c3 {[%clk 0:04:33]} 9... Bd6
{[%clk 0:04:11.8]} 10. dxe6 {[%clk 0:04:26.1]} 10... Bxe6 {[%clk 0:04:09.9]} 11.
Bxe6 {[%clk 0:04:25]} 11... fxe6 {[%clk 0:04:09.3]} 12. Qh5+ {[%clk 0:04:24.3]}
12... Kd7 {[%clk 0:04:02]} 13. O-O-O {[%clk 0:04:23]} 13... Qe7 {[%clk
0:03:58.9]} 14. Nf3 {[%clk 0:04:20.9]} 14... Nc6 {[%clk 0:03:57.5]} 15. Qb5
{[%clk 0:04:13]} 15... b6 {[%clk 0:03:37.9]} 16. Nd4 {[%clk 0:04:09.9]} 16... a6
{[%clk 0:03:25.7]} 17. Qxc6+ {[%clk 0:04:07.4]} 17... Kd8 {[%clk 0:03:21.3]} 18.
Qxa8+ {[%clk 0:04:05.9]} 1-0

[Event "Live Chess"]
[Site "Chess.com"]
[Date "2023.05.21"]
[Round "-"]
[White "WelshTiger"]
[Black "whatnot126"]
[Result "1-0"]
[WhiteElo "2306"]
[BlackElo "2048"]
[TimeControl "300"]
[EndTime "5:53:06 PDT"]
[Termination "WelshTiger won by resignation"]

1. e4 {[%clk 0:04:57.2]} 1... d6 {[%clk 0:04:59.1]} 2. d4 {[%clk 0:04:56.1]}
2... Nf6 {[%clk 0:04:58.5]} 3. Nc3 {[%clk 0:04:55.1]} 3... g6 {[%clk 0:04:57.9]}
4. f4 {[%clk 0:04:53.9]} 4... Bg7 {[%clk 0:04:57.2]} 5. Nf3 {[%clk 0:04:53.4]}
5... O-O {[%clk 0:04:55.7]} 6. Bd3 {[%clk 0:04:52.6]} 6... Nc6 {[%clk
0:04:53.7]} 7. e5 {[%clk 0:04:48]} 7... dxe5 {[%clk 0:04:41.1]} 8. fxe5 {[%clk
0:04:46.2]} 8... Nd5 {[%clk 0:04:40.5]} 9. Nxd5 {[%clk 0:04:42.2]} 9... Qxd5
{[%clk 0:04:40.4]} 10. c3 {[%clk 0:04:41.5]} 10... Bg4 {[%clk 0:04:37.7]} 11.
Qe2 {[%clk 0:04:34.8]} 11... f6 {[%clk 0:04:21.5]} 12. Bc4 {[%clk 0:04:31.2]}
12... Bxf3 {[%clk 0:04:17.9]} 13. gxf3 {[%clk 0:04:29.5]} 1-0

[Event "Live Chess"]
[Site "Chess.com"]
[Date "2023.05.21"]
[Round "-"]
[White "GwaryTek"]
[Black "yarek"]
[Result "1-0"]
[WhiteElo "2061"]
[BlackElo "1865"]
[TimeControl "300"]
[EndTime "5:53:08 PDT"]
[Termination "GwaryTek won on time"]

1. d4 {[%clk 0:04:57.9]} 1... g6 {[%clk 0:04:58.6]} 2. c4 {[%clk 0:04:56.5]}
2... Bg7 {[%clk 0:04:57.9]} 3. Nc3 {[%clk 0:04:56.1]} 3... c6 {[%clk 0:04:56.1]}
4. e4 {[%clk 0:04:53.5]} 4... d6 {[%clk 0:04:52.6]} 5. f4 {[%clk 0:04:49.9]}
5... Nf6 {[%clk 0:04:49.2]} 6. Nf3 {[%clk 0:04:48.3]} 6... Bg4 {[%clk
0:04:46.3]} 7. e5 {[%clk 0:04:46.7]} 7... Bxf3 {[%clk 0:04:44.2]} 8. Qxf3 {[%clk
0:04:43]} 8... Nfd7 {[%clk 0:04:31.8]} 9. h4 {[%clk 0:04:37.1]} 9... h5 {[%clk
0:04:28.1]} 10. Be3 {[%clk 0:04:34.6]} 10... Qa5 {[%clk 0:04:01.7]} 11. O-O-O
{[%clk 0:04:31.8]} 11... Na6 {[%clk 0:03:54.4]} 12. Bd3 {[%clk 0:04:14]} 12...
Nb4 {[%clk 0:03:49]} 13. Bb1 {[%clk 0:04:12.8]} 13... O-O-O {[%clk 0:03:37.8]}
14. Rd2 {[%clk 0:03:53.7]} 14... Nb6 {[%clk 0:03:28.6]} 15. a3 {[%clk
0:03:39.5]} 15... Na6 {[%clk 0:03:09.5]} 16. Qe2 {[%clk 0:03:16.4]} 16... Na4
{[%clk 0:02:56.4]} 17. Rc2 {[%clk 0:02:59.1]} 17... Nxc3 {[%clk 0:02:45]} 18.
Rxc3 {[%clk 0:02:59]} 18... d5 {[%clk 0:02:31.7]} 19. b4 {[%clk 0:02:24.2]}
19... Nxb4 {[%clk 0:02:14.3]} 20. axb4 {[%clk 0:02:19.9]} 20... Qxb4 {[%clk
0:02:13.9]} 21. Qb2 {[%clk 0:02:17.9]} 21... Qxb2+ {[%clk 0:01:45.2]} 22. Kxb2
{[%clk 0:02:17.8]} 22... dxc4 {[%clk 0:01:33.7]} 23. Rxc4 {[%clk 0:02:17.7]}
23... Rd5 {[%clk 0:01:29.3]} 24. Be4 {[%clk 0:02:04.6]} 24... Rb5+ {[%clk
0:01:26.8]} 25. Kc3 {[%clk 0:02:02.7]} 25... e6 {[%clk 0:01:21]} 26. Ra1 {[%clk
0:01:57.1]} 26... a5 {[%clk 0:01:12.9]} 27. Rc5 {[%clk 0:01:51.3]} 27... Bf8
{[%clk 0:00:41.7]} 28. Rxb5 {[%clk 0:01:45.9]} 28... cxb5 {[%clk 0:00:39.6]} 29.
Rxa5 {[%clk 0:01:44.7]} 29... Be7 {[%clk 0:00:34.9]} 30. Rxb5 {[%clk 0:01:42.7]}
30... Bxh4 {[%clk 0:00:33.2]} 31. Rxb7 {[%clk 0:01:38.1]} 31... Rd8 {[%clk
0:00:25.7]} 32. Rxf7 {[%clk 0:01:34.5]} 32... Be1+ {[%clk 0:00:10.3]} 33. Kc4
{[%clk 0:01:32]} 33... Rg8 {[%clk 0:00:06.4]} 34. Bc1 {[%clk 0:01:22]} 34... h4
{[%clk 0:00:03.9]} 35. Ba3 {[%clk 0:01:19.6]} 1-0

[Event "Live Chess"]
[Site "Chess.com"]
[Date "2023.05.21"]
[Round "-"]
[White "ms_lilley"]
[Black "NaCl1251"]
[Result "1-0"]
[WhiteElo "605"]
[BlackElo "568"]
[TimeControl "300"]
[EndTime "5:53:10 PDT"]
[Termination "ms_lilley won by resignation"]

1. d4 {[%clk 0:04:56.7]} 1... d5 {[%clk 0:04:58.3]} 2. e3 {[%clk 0:04:55.2]}
2... e6 {[%clk 0:04:53.2]} 3. Nf3 {[%clk 0:04:54]} 3... Bb4+ {[%clk 0:04:51.3]}
4. Bd2 {[%clk 0:04:49.2]} 4... Qd6 {[%clk 0:04:49.2]} 5. a3 {[%clk 0:04:47]}
5... Bxd2+ {[%clk 0:04:47.9]} 6. Nbxd2 {[%clk 0:04:45.5]} 6... Nc6 {[%clk
0:04:46.1]} 7. b4 {[%clk 0:04:43.2]} 7... Nf6 {[%clk 0:04:44.1]} 8. h3 {[%clk
0:04:41.4]} 8... O-O {[%clk 0:04:42.8]} 9. b5 {[%clk 0:04:37.9]} 9... Na5 {[%clk
0:04:37.4]} 10. a4 {[%clk 0:04:34.5]} 10... Ne4 {[%clk 0:04:34.8]} 11. Nxe4
{[%clk 0:04:32.5]} 11... dxe4 {[%clk 0:04:33.5]} 12. Ne5 {[%clk 0:04:30.2]}
12... Qb4+ {[%clk 0:04:21.4]} 13. Qd2 {[%clk 0:04:16.9]} 13... Qb2 {[%clk
0:04:17.8]} 14. Rd1 {[%clk 0:04:05.2]} 14... Nc4 {[%clk 0:04:12.3]} 15. Bxc4
{[%clk 0:03:58]} 15... c6 {[%clk 0:03:57.1]} 16. O-O {[%clk 0:03:55.1]} 16...
cxb5 {[%clk 0:03:51.9]} 17. axb5 {[%clk 0:03:50.5]} 17... f6 {[%clk 0:03:49.5]}
18. Ng4 {[%clk 0:03:43.9]} 18... f5 {[%clk 0:03:47.2]} 19. Ne5 {[%clk
0:03:41.1]} 19... Bd7 {[%clk 0:03:30.8]} 20. Rb1 {[%clk 0:03:39.1]} 20... Qa2
{[%clk 0:03:16.5]} 21. Bxa2 {[%clk 0:03:33]} 21... Bxb5 {[%clk 0:03:12.2]} 22.
Rxb5 {[%clk 0:03:30.8]} 1-0

[Event "Live Chess"]
[Site "Chess.com"]
[Date "2023.05.21"]
[Round "-"]
[White "GMHarry-youtube"]
[Black "davigator"]
[Result "0-1"]
[WhiteElo "2025"]
[BlackElo "2321"]
[TimeControl "300"]
[EndTime "5:53:18 PDT"]
[Termination "davigator won by checkmate"]

1. e4 {[%clk 0:04:58.5]} 1... c5 {[%clk 0:04:58]} 2. Nf3 {[%clk 0:04:58]} 2...
Nc6 {[%clk 0:04:56.1]} 3. Bb5 {[%clk 0:04:57.6]} 3... g6 {[%clk 0:04:52.9]} 4.
O-O {[%clk 0:04:56.7]} 4... Bg7 {[%clk 0:04:49.7]} 5. c3 {[%clk 0:04:56.3]} 5...
Nf6 {[%clk 0:04:45.6]} 6. Re1 {[%clk 0:04:54.4]} 6... O-O {[%clk 0:04:44.1]} 7.
d4 {[%clk 0:04:53.4]} 7... cxd4 {[%clk 0:04:44]} 8. cxd4 {[%clk 0:04:53.3]} 8...
d5 {[%clk 0:04:43.3]} 9. e5 {[%clk 0:04:52.3]} 9... Ne4 {[%clk 0:04:42.8]} 10.
Bxc6 {[%clk 0:04:50.8]} 10... bxc6 {[%clk 0:04:41.7]} 11. Nc3 {[%clk 0:04:50]}
11... Bf5 {[%clk 0:04:33.9]} 12. Nd2 {[%clk 0:04:46]} 12... Nxc3 {[%clk
0:04:25.8]} 13. bxc3 {[%clk 0:04:33.9]} 13... f6 {[%clk 0:04:25.3]} 14. e6
{[%clk 0:04:32.2]} 14... g5 {[%clk 0:04:16.3]} 15. f4 {[%clk 0:04:12.1]} 15...
Qd6 {[%clk 0:04:12.9]} 16. g4 {[%clk 0:04:09.7]} 16... Bxe6 {[%clk 0:04:10.7]}
17. f5 {[%clk 0:04:08.4]} 17... Bf7 {[%clk 0:04:05.8]} 18. Nb3 {[%clk
0:04:07.1]} 18... e6 {[%clk 0:04:04]} 19. fxe6 {[%clk 0:04:01]} 19... Bxe6
{[%clk 0:04:02.6]} 20. Nc5 {[%clk 0:04:00.6]} 20... Bc8 {[%clk 0:04:01.3]} 21.
Ba3 {[%clk 0:03:50.8]} 21... Qf4 {[%clk 0:03:57.7]} 22. Nd3 {[%clk 0:03:45.8]}
22... Qxg4+ {[%clk 0:03:52]} 23. Qxg4 {[%clk 0:03:44.4]} 23... Bxg4 {[%clk
0:03:51.4]} 24. Bxf8 {[%clk 0:03:44.2]} 24... Bxf8 {[%clk 0:03:50.5]} 25. Nc5
{[%clk 0:03:42.4]} 25... Kf7 {[%clk 0:03:46.4]} 26. Rab1 {[%clk 0:03:39]} 26...
Bc8 {[%clk 0:03:43.9]} 27. a4 {[%clk 0:03:30.2]} 27... Bd6 {[%clk 0:03:35.4]}
28. Nb7 {[%clk 0:03:27.6]} 28... Bf4 {[%clk 0:03:31]} 29. a5 {[%clk 0:03:23.2]}
29... Bf5 {[%clk 0:03:22.6]} 30. Rb4 {[%clk 0:03:19.1]} 30... h5 {[%clk
0:03:13.1]} 31. Nc5 {[%clk 0:03:15]} 31... Bc8 {[%clk 0:03:10]} 32. a6 {[%clk
0:03:08.8]} 32... Bd6 {[%clk 0:03:06.1]} 33. Ra1 {[%clk 0:02:50]} 33... h4
{[%clk 0:03:01.4]} 34. h3 {[%clk 0:02:31.3]} 34... Bxh3 {[%clk 0:02:56.9]} 35.
Rb7+ {[%clk 0:02:26.3]} 35... Kg6 {[%clk 0:02:56.6]} 36. Nd7 {[%clk 0:02:19.2]}
36... Rd8 {[%clk 0:02:50.8]} 37. Rxa7 {[%clk 0:02:11.5]} 37... Bxd7 {[%clk
0:02:48.3]} 38. Rxd7 {[%clk 0:02:09.5]} 38... Rxd7 {[%clk 0:02:45]} 39. a7
{[%clk 0:02:08.9]} 39... Rxa7 {[%clk 0:02:43.4]} 40. Rxa7 {[%clk 0:02:07.5]}
40... Kf5 {[%clk 0:02:34.2]} 41. Ra6 {[%clk 0:02:04.9]} 41... Bf4 {[%clk
0:02:26.3]} 42. Rxc6 {[%clk 0:02:02.2]} 42... Bd2 {[%clk 0:02:25.9]} 43. Kg2
{[%clk 0:01:52.3]} 43... g4 {[%clk 0:02:25.2]} 44. c4 {[%clk 0:01:51.1]} 44...
dxc4 {[%clk 0:02:23]} 45. Rxc4 {[%clk 0:01:49.2]} 45... h3+ {[%clk 0:02:15.1]}
46. Kh1 {[%clk 0:01:48.1]} 46... g3 {[%clk 0:02:09.7]} 47. d5 {[%clk 0:01:27.6]}
47... g2+ {[%clk 0:02:08]} 48. Kh2 {[%clk 0:01:26.8]} 48... Be3 {[%clk
0:02:07.3]} 49. Rc1 {[%clk 0:01:14.7]} 49... Bxc1 {[%clk 0:02:00.8]} 50. d6
{[%clk 0:01:13.5]} 50... Bf4+ {[%clk 0:01:59.7]} 51. Kg1 {[%clk 0:01:11.8]}
51... Bxd6 {[%clk 0:01:57.3]} 52. Kf2 {[%clk 0:01:11.7]} 52... Bc5+ {[%clk
0:01:56]} 53. Kg3 {[%clk 0:01:07.8]} 53... g1=Q+ {[%clk 0:01:55]} 54. Kxh3
{[%clk 0:01:07.7]} 54... Qg4+ {[%clk 0:01:51.7]} 55. Kh2 {[%clk 0:01:07.2]}
55... Bd6+ {[%clk 0:01:49.6]} 56. Kh1 {[%clk 0:01:06.1]} 56... Qh3+ {[%clk
0:01:46.1]} 57. Kg1 {[%clk 0:01:05.1]} 57... Bc5# {[%clk 0:01:43.8]} 0-1

[Event "Live Chess"]
[Site "Chess.com"]
[Date "2023.05.21"]
[Round "-"]
[White "AlanPaling"]
[Black "JohanKjeldahl"]
[Result "0-1"]
[WhiteElo "1366"]
[BlackElo "1865"]
[TimeControl "300"]
[EndTime "5:53:24 PDT"]
[Termination "JohanKjeldahl won by resignation"]

1. c4 {[%clk 0:04:59.1]} 1... Nf6 {[%clk 0:04:58]} 2. Nc3 {[%clk 0:04:57.9]}
2... e5 {[%clk 0:04:55.9]} 3. g3 {[%clk 0:04:56.1]} 3... Nc6 {[%clk 0:04:54.6]}
4. Bg2 {[%clk 0:04:55]} 4... d6 {[%clk 0:04:52.8]} 5. e4 {[%clk 0:04:51.8]} 5...
Be6 {[%clk 0:04:48.5]} 6. d3 {[%clk 0:04:50.4]} 6... Be7 {[%clk 0:04:47.4]} 7.
f4 {[%clk 0:04:49.1]} 7... exf4 {[%clk 0:04:42.8]} 8. gxf4 {[%clk 0:04:47.3]}
8... O-O {[%clk 0:04:40.5]} 9. f5 {[%clk 0:04:45.9]} 9... Bd7 {[%clk 0:04:39.2]}
10. Nge2 {[%clk 0:04:44.4]} 10... a6 {[%clk 0:04:36.5]} 11. O-O {[%clk
0:04:42.7]} 11... Ne5 {[%clk 0:04:32.4]} 12. Nf4 {[%clk 0:04:38.5]} 12... b5
{[%clk 0:04:30.6]} 13. b3 {[%clk 0:04:35.7]} 13... c6 {[%clk 0:04:15.6]} 14. Be3
{[%clk 0:04:31.3]} 14... b4 {[%clk 0:04:09.5]} 15. Na4 {[%clk 0:04:29]} 15...
Nfg4 {[%clk 0:04:02.6]} 16. Qe2 {[%clk 0:03:56.4]} 16... Nxe3 {[%clk 0:03:59.8]}
17. Qxe3 {[%clk 0:03:54.6]} 17... c5 {[%clk 0:03:55.2]} 18. Nb2 {[%clk
0:03:46.9]} 18... Bc6 {[%clk 0:03:50]} 19. h3 {[%clk 0:03:39.6]} 19... Bf6
{[%clk 0:03:47.1]} 20. Rab1 {[%clk 0:03:34.9]} 20... Qd7 {[%clk 0:03:29.6]} 21.
Nd1 {[%clk 0:03:26.6]} 21... Nxc4 {[%clk 0:03:21.5]} 22. Ne2 {[%clk 0:03:09]}
22... Ne5 {[%clk 0:03:13.2]} 23. d4 {[%clk 0:02:59.5]} 23... cxd4 {[%clk
0:03:07.7]} 24. Nxd4 {[%clk 0:02:58.2]} 24... Bb5 {[%clk 0:03:04.3]} 25. Nxb5
{[%clk 0:02:52.8]} 25... Qxb5 {[%clk 0:03:02.2]} 26. Nf2 {[%clk 0:02:45.2]}
26... Rac8 {[%clk 0:02:58.1]} 27. Rbc1 {[%clk 0:02:41.8]} 27... Rc5 {[%clk
0:02:50.2]} 28. Rxc5 {[%clk 0:02:34.2]} 28... dxc5 {[%clk 0:02:49]} 29. Rd1
{[%clk 0:02:23.2]} 29... h6 {[%clk 0:02:43.3]} 30. Bf1 {[%clk 0:02:21.2]} 30...
Qc6 {[%clk 0:02:34.3]} 31. Bc4 {[%clk 0:02:19.4]} 31... Nxc4 {[%clk 0:02:31.5]}
32. bxc4 {[%clk 0:02:17.9]} 32... Bd4 {[%clk 0:02:30.5]} 33. Qf4 {[%clk
0:02:12.7]} 33... Rd8 {[%clk 0:02:24.3]} 34. Kg2 {[%clk 0:02:05.7]} 34... Qf6
{[%clk 0:02:19.6]} 35. Ng4 {[%clk 0:01:56.7]} 35... Qg5 {[%clk 0:02:14.6]} 36.
Qxg5 {[%clk 0:01:53.5]} 36... hxg5 {[%clk 0:02:13.6]} 37. Ne3 {[%clk 0:01:46]}
37... Kf8 {[%clk 0:02:03.8]} 38. Nd5 {[%clk 0:01:44]} 38... f6 {[%clk
0:01:57.5]} 39. Kg3 {[%clk 0:01:36.6]} 39... Kf7 {[%clk 0:01:55.4]} 40. Kg4
{[%clk 0:01:32]} 40... a5 {[%clk 0:01:53]} 41. h4 {[%clk 0:01:28.7]} 41... gxh4
{[%clk 0:01:51.3]} 42. Kxh4 {[%clk 0:01:27.5]} 42... Rh8+ {[%clk 0:01:49.1]} 43.
Kg3 {[%clk 0:01:23]} 43... Rh5 {[%clk 0:01:42.8]} 44. Kg4 {[%clk 0:01:18.1]}
44... Rg5+ {[%clk 0:01:40.8]} 45. Kf3 {[%clk 0:01:17.1]} 45... g6 {[%clk
0:01:23.3]} 46. fxg6+ {[%clk 0:01:14.5]} 46... Kxg6 {[%clk 0:01:20.8]} 47. Nf4+
{[%clk 0:01:12.8]} 47... Kf7 {[%clk 0:01:18.1]} 48. Nd5 {[%clk 0:00:57.3]} 48...
Rg1 {[%clk 0:01:08.9]} 49. Rxg1 {[%clk 0:00:51.2]} 49... Bxg1 {[%clk 0:01:07.8]}
50. Kf4 {[%clk 0:00:32.1]} 50... a4 {[%clk 0:01:05.5]} 51. Nb6 {[%clk
0:00:16.8]} 51... b3 {[%clk 0:00:59.9]} 52. Nxa4 {[%clk 0:00:13.9]} 52... bxa2
{[%clk 0:00:57.7]} 0-1